Workbook

Sheet READ ME
A1: This file is a supplement to the Chapter "Families in Macroeconomics" by Matthias Doepke
A2: and Michèle Tertilt in the Handbook of Macroeconomics (forthcoming). It presents the time
A3: series figures that appear on the chapter and the data that was used to construct them. The
A4: number on the sheet indicates the number with which the figure is labeled in the chapter.

Sheet Figure 1
B2: Children Ever Born, United States
A4: these are our estimates of children ever born (CEB ) | E4: surviving children ever born (CEB)
A6: year | B6: CEB
A7: 1828 | B7: 5.5861
A8: 1833 | B8: 5.4488
A9: 1838 | B9: 5.4942
A10: 1843 | B10: 5.3904
A11: 1848 | B11: 5.3561
A12: 1853 | B12: 5.3003
A13: 1858 | B13: 4.9002
A14: 1863 | B14: 4.9667
A15: 1868 | B15: 4.4952
A16: 1873 | B16: 3.4123
A17: 1878 | B17: 3.2457
A18: 1883 | B18: 3.2151
A19: 1888 | B19: 3.1504
A20: 1893 | B20: 3.0494
A21: 1898 | B21: 2.8222
A22: 1903 | B22: 2.5853
A23: 1908 | B23: 2.3019
A24: 1913 | B24: 2.4056
A25: 1918 | B25: 2.5939
A26: 1923 | B26: 2.8474
A27: 1928 | B27: 3.1074
A28: 1933 | B28: 3.1959
A29: 1938 | B29: 3.0104
A30: 1943 | B30: 2.5447
A31: 1948 | B31: 2.216
A32: 1953 | B32: 2.0468
A33: 1958 | B33: 1.7991
A35: Source: Jones, Larry E., and Michèle Tertilt. 2008. In An Economic History of the Relationship Between Occupation and Fertility - U.S. 1826-1960, Volume 1. ed. Peter Rupert,Bingley, UK: Emerald Group Publishing Limited., Table 1A. (Also available as NBER Working Paper # 12796.)

Sheet Figure 2
B2: Household Size, United States (Overall Means of HH variables)
D4: Household | E4: Family | F4: Adults | G4: Children | J4: Head | K4: Spouse | L4: Child <18 | M4: Child 18+ | N4: Parent | O4: Sibling | P4: Grandchild | Q4: Other Rel. | R4: Partner/Friend | S4: Other Nonrel.
A5: Obs | B5: year | C5: _FREQ_ | D5: numprec | E5: famsize | F5: hhadult | G5: hhkid | H5: hhfammember | I5: hhnonfam | J5: hhhead | K5: hhspouse | L5: hhyoungchild | M5: hhadultchild | N5: hhparent | O5: hhsibling | P5: hhgrandchild | Q5: hhotherrel | R5: hhpafrivi | S5: hhothernonrel | T5: hhinmates | U5: hhobs
A6: 1 | B6: 1850 | C6: 99016 | D6: 6.15862 | E6: 5.18354 | F6: 3.47404 | G6: 2.68458 | H6: 5.52573 | I6: 0.63288 | J6: 1 | K6: 0.84106 | L6: 2.31544 | M6: 0.80352 | N6: 0.10342 | O6: 0.20337 | P6: 0.12341 | Q6: 0.13552 | R6: 0 | S6: 0.63288 | T6: 0 | U6: 99016
A7: 2 | B7: 1860 | C7: 142715 | D7: 5.83956 | E7: 4.95317 | F7: 3.36822 | G7: 2.47134 | H7: 5.25789 | I7: 0.58167 | J7: 1 | K7: 0.83952 | L7: 2.1596 | M7: 0.75751 | N7: 0.10073 | O7: 0.17978 | P7: 0.10608 | Q7: 0.11468 | R7: 0 | S7: 0.58167 | T7: 0 | U7: 142715
A8: 3 | B8: 1870 | C8: 201914 | D8: 5.66182 | E8: 4.7925 | F8: 3.30244 | G8: 2.35938 | H8: 5.07412 | I8: 0.5877 | J8: 1 | K8: 0.83413 | L8: 2.02442 | M8: 0.71885 | N8: 0.10532 | O8: 0.16714 | P8: 0.11585 | Q8: 0.10841 | R8: 0 | S8: 0.5877 | T8: 0 | U8: 201914
A9: 4 | B9: 1880 | C9: 273521 | D9: 5.54224 | E9: 4.67449 | F9: 3.3351 | G9: 2.20714 | H9: 4.96516 | I9: 0.57709 | J9: 0.99991 | K9: 0.83004 | L9: 1.95938 | M9: 0.78189 | N9: 0.08698 | O9: 0.12188 | P9: 0.11095 | Q9: 0.07413 | R9: 0.00458 | S9: 0.5705 | T9: 0.002011179 | U9: 273521
A10: 5 | B10: 1900 | C10: 436140 | D10: 5.23476 | E10: 4.51254 | F10: 3.3385 | G10: 1.89626 | H10: 4.71743 | I10: 0.51733 | J10: 0.9998 | K10: 0.80958 | L10: 1.69623 | M10: 0.82112 | N10: 0.09196 | O10: 0.12786 | P10: 0.10171 | Q10: 0.06917 | R10: 0.00938 | S10: 0.50769 | T10: 0.000260761 | U10: 436140
A11: 6 | B11: 1910 | C11: 548914 | D11: 5.05698 | E11: 4.33819 | F11: 3.32716 | G11: 1.72982 | H11: 4.53451 | I11: 0.52247 | J11: 0.99942 | K11: 0.81478 | L11: 1.556 | M11: 0.76836 | N11: 0.09462 | O11: 0.13758 | P11: 0.09192 | Q11: 0.07184 | R11: 0.00996 | S11: 0.5124 | T11: 0.000101724 | U11: 548914
A12: 7 | B12: 1920 | C12: 634416 | D12: 4.79466 | E12: 4.2718 | F12: 3.17243 | G12: 1.62223 | H12: 4.42229 | I12: 0.37237 | J12: 0.99912 | K12: 0.81909 | L12: 1.46937 | M12: 0.7472 | N12: 0.09581 | O12: 0.13579 | P12: 0.08965 | Q12: 0.06625 | R12: 0.00634 | S12: 0.36601 | T12: 1.4166e-05 | U12: 634416
A13: 8 | B13: 1930 | C13: 761371 | D13: 4.56165 | E13: 4.11414 | F13: 3.08666 | G13: 1.47499 | H13: 4.23959 | I13: 0.32206 | J13: 0.99986 | K13: 0.81872 | L13: 1.3196 | M13: 0.71191 | N13: 0.09586 | O13: 0.12684 | P13: 0.09828 | Q13: 0.06852 | R13: 0.00282 | S13: 0.31905 | T13: 0.000190446 | U13: 761371
A14: 9 | B14: 1940 | C14: 886961 | D14: 4.18441 | E14: 3.90724 | F14: 2.98276 | G14: 1.20165 | H14: 3.98621 | I14: 0.1982 | J14: 1 | K14: 0.80425 | L14: 1.06081 | M14: 0.75375 | N14: 0.09192 | O14: 0.1109 | P14: 0.10539 | Q14: 0.0592 | R14: 0.00554 | S14: 0.19265 | T14: 0 | U14: 886961
A15: 10 | B15: 1950 | C15: 1141994 | D15: 3.76825 | E15: 3.58377 | F15: 2.65097 | G15: 1.11727 | H15: 3.62622 | I15: 0.14202 | J15: 1 | K15: 0.81668 | L15: 0.97674 | M15: 0.48638 | N15: 0.09386 | O15: 0.0897 | P15: 0.10725 | Q15: 0.05561 | R15: 0.00677 | S15: 0.13526 | T15: 0 | U15: 1141994
A16: 11 | B16: 1960 | C16: 1106337 | D16: 3.66341 | E16: 3.56746 | F16: 2.36774 | G16: 1.29567 | H16: 3.59067 | I16: 0.07275 | J16: 1 | K16: 0.81618 | L16: 1.18784 | M16: 0.30994 | N16: 0.07421 | O16: 0.06125 | P16: 0.07928 | Q16: 0.06197 | R16: 0.00608 | S16: 0.06667 | T16: 0 | U16: 1106337
A17: 12 | B17: 1970 | C17: 2548180 | D17: 3.49574 | E17: 3.41647 | F17: 2.30483 | G17: 1.19091 | H17: 3.43108 | I17: 0.06466 | J17: 1 | K17: 0.78121 | L17: 1.10955 | M17: 0.34367 | N17: 0.05591 | O17: 0.04757 | P17: 0.06192 | Q17: 0.03125 | R17: 0.021 | S17: 0.04366 | T17: 0 | U17: 2548180
A18: 13 | B18: 1980 | C18: 1569017 | D18: 3.17969 | E18: 3.05863 | F18: 2.29657 | G18: 0.88312 | H18: 3.07714 | I18: 0.10255 | J18: 1 | K18: 0.71898 | L18: 0.80795 | M18: 0.379 | N18: 0.04227 | O18: 0.0461 | P18: 0.05307 | Q18: 0.02977 | R18: 0.05305 | S18: 0.0495 | T18: 0 | U18: 1569017
A19: 14 | B19: 1990 | C19: 1796436 | D19: 3.08716 | E19: 2.90001 | F19: 2.31174 | G19: 0.77542 | H19: 2.93613 | I19: 0.15103 | J19: 1 | K19: 0.67033 | L19: 0.681 | M19: 0.37542 | N19: 0.03733 | O19: 0.04998 | P19: 0.07515 | Q19: 0.04692 | R19: 0.10083 | S19: 0.05019 | T19: 0 | U19: 1796436
A20: 15 | B20: 2000 | C20: 2011639 | D20: 3.06924 | E20: 2.83355 | F20: 2.27506 | G20: 0.79419 | H20: 2.88383 | I20: 0.18542 | J20: 1 | K20: 0.63364 | L20: 0.68579 | M20: 0.32567 | N20: 0.04884 | O20: 0.05997 | P20: 0.08366 | Q20: 0.04625 | R20: 0.11765 | S20: 0.06777 | T20: 0 | U20: 2011639
B38: Source: Salcedo, Alejandrina, Todd Schoellmann, and Michèle Tertilt. 2012. “Families as Roommates: Changes in U.S. Household Size from 1850 to 2000.” Quantitative Economics 3:133–175. p. 138

Sheet Figure 3 + 4
B2: Households by Type: 1940 to Present
B3: (Numbers in thousands)
A5: For more information about ASEC, including the source and accuracy statement, see the technical documentation accessible at: http://www.census.gov/programs-surveys/cps/technical-documentation/complete.html
A8: Year | B8: Total households | C8: Family households | I8: Nonfamily households
C9: Total | D9: Married couples | F9: Other family | I9: Total | J9: Male householder | K9: Female householder
F10: Male householder | G10: Female householder
N12: year | O12: married | P12: not married | R12: year | S12: Married couples | T12: Familiy - male householder | U12: Family - female householder | V12: Nonfamily - male householder | W12: Nonfamily - female householder
A13: 1940d | B13: 34949 | C13: 31491 | D13: 26571 | F13: 1510 | G13: 3410 | I13: 3458 | J13: 1599 | K13: 1859 | N13: 1940 | O13: 0.7602792641 | P13: 0.2397207359 | R13: 1940 | S13: 0.7602792641 | T13: 0.04320581419 | U13: 0.09757074594 | V13: 0.04575238204 | W13: 0.05319179376 | X13: 1
A14: 1947 | B14: 39107 | C14: 34964 | D14: 30612 | F14: 1129 | G14: 3223 | I14: 4143 | J14: 1388 | K14: 2755 | N14: 1947 | O14: 0.7827754622 | P14: 0.2172245378 | R14: 1947 | S14: 0.7827754622 | T14: 0.02886951185 | U14: 0.08241491293 | V14: 0.0354923671 | W14: 0.07044774593
A15: 1948 | B15: 40532 | C15: 36629 | D15: 31900 | F15: 1020 | G15: 3709 | I15: 3903 | J15: 1198 | K15: 2705 | N15: 1948 | O15: 0.7870324682 | P15: 0.2129675318 | R15: 1948 | S15: 0.7870324682 | T15: 0.02516530149 | U15: 0.09150794434 | V15: 0.02955689332 | W15: 0.06673739268
A16: 1949 | B16: 42182 | C16: 38080 | D16: 33257 | F16: 1197 | G16: 3626 | I16: 4102 | J16: 1308 | K16: 2794 | N16: 1949 | O16: 0.7884168603 | P16: 0.2115831397 | R16: 1949 | S16: 0.7884168603 | T16: 0.02837703286 | U16: 0.08596083638 | V16: 0.03100848703 | W16: 0.06623678346
A17: 1950 | B17: 43554 | C17: 38838 | D17: 34075 | F17: 1169 | G17: 3594 | I17: 4716 | J17: 1668 | K17: 3048 | N17: 1950 | O17: 0.7823621252 | P17: 0.2176378748 | R17: 1950 | S17: 0.7823621252 | T17: 0.02684024429 | U17: 0.0825182532 | V17: 0.03829728613 | W17: 0.0699820912
A18: 1951 | B18: 44673 | C18: 39502 | D18: 34391 | F18: 1154 | G18: 3957 | I18: 5171 | J18: 1732 | K18: 3439 | N18: 1951 | O18: 0.769838605 | P18: 0.230161395 | R18: 1951 | S18: 0.769838605 | T18: 0.02583215813 | U18: 0.08857699281 | V18: 0.03877062208 | W18: 0.07698162201
A19: 1952 | B19: 45538 | C19: 40235 | D19: 35164 | F19: 1119 | G19: 3952 | I19: 5303 | J19: 1757 | K19: 3546 | N19: 1952 | O19: 0.7721902587 | P19: 0.2278097413 | R19: 1952 | S19: 0.7721902587 | T19: 0.02457288418 | U19: 0.08678466336 | V19: 0.03858316132 | W19: 0.07786903246
A20: 1953 | B20: 46385 | C20: 40540 | D20: 35577 | F20: 1206 | G20: 3757 | I20: 5845 | J20: 1902 | K20: 3943 | N20: 1953 | O20: 0.7669936402 | P20: 0.2330063598 | R20: 1953 | S20: 0.7669936402 | T20: 0.02599978441 | U20: 0.08099601164 | V20: 0.04100463512 | W20: 0.08500592864
A21: 1954 | B21: 46962 | C21: 40998 | D21: 35926 | F21: 1315 | G21: 3757 | I21: 5964 | J21: 1925 | K21: 4039 | N21: 1954 | O21: 0.7650014906 | P21: 0.2349985094 | R21: 1954 | S21: 0.7650014906 | T21: 0.0280013628 | U21: 0.08000085175 | V21: 0.04099058814 | W21: 0.08600570674
A22: 1955 | B22: 47874 | C22: 41732 | D22: 36251 | F22: 1328 | G22: 4153 | I22: 6142 | J22: 2059 | K22: 4083 | N22: 1955 | O22: 0.7572168609 | P22: 0.2427831391 | R22: 1955 | S22: 0.7572168609 | T22: 0.02773948281 | U22: 0.08674854827 | V22: 0.04300873125 | W22: 0.08528637674
A23: 1956 | B23: 48902 | C23: 42593 | D23: 37047 | F23: 1408 | G23: 4138 | I23: 6309 | J23: 2058 | K23: 4250 | N23: 1956 | O23: 0.7575763772 | P23: 0.2424236228 | R23: 1956 | S23: 0.7575763772 | T23: 0.02879227843 | U23: 0.08461821602 | V23: 0.04208416834 | W23: 0.0869085109
A24: 1957 | B24: 49673 | C24: 43262 | D24: 37718 | F24: 1241 | G24: 4304 | I24: 6411 | J24: 2038 | K24: 4374 | N24: 1957 | O24: 0.759325992 | P24: 0.240674008 | R24: 1957 | S24: 0.759325992 | T24: 0.02498339138 | U24: 0.08664666922 | V24: 0.04102832525 | W24: 0.08805588549
A25: 1958 | B25: 50474 | C25: 43426 | D25: 37911 | F25: 1278 | G25: 4237 | I25: 7047 | J25: 2329 | K25: 4718 | N25: 1958 | O25: 0.751099576 | P25: 0.248900424 | R25: 1958 | S25: 0.751099576 | T25: 0.02531996672 | U25: 0.0839442089 | V25: 0.04614256845 | W25: 0.09347386773
A26: 1959 | B26: 51435 | C26: 43971 | D26: 38410 | F26: 1285 | G26: 4276 | I26: 7464 | J26: 2449 | K26: 5015 | N26: 1959 | O26: 0.7467677651 | P26: 0.2532322349 | R26: 1959 | S26: 0.7467677651 | T26: 0.02498298824 | U26: 0.08313405269 | V26: 0.04761349276 | W26: 0.09750170118
A27: 1960 | B27: 52799 | C27: 44905 | D27: 39254 | F27: 1228 | G27: 4422 | I27: 7895 | J27: 2716 | K27: 5179 | N27: 1960 | O27: 0.7434610504 | P27: 0.2565389496 | R27: 1960 | S27: 0.7434610504 | T27: 0.02325801625 | U27: 0.0837515862 | V27: 0.05144036819 | W27: 0.09808897896
A28: 1961 | B28: 53557 | C28: 45383 | D28: 39620 | F28: 1199 | G28: 4564 | I28: 8174 | J28: 2779 | K28: 5395 | N28: 1961 | O28: 0.7397725787 | P28: 0.2602274213 | R28: 1961 | S28: 0.7397725787 | T28: 0.022387363 | U28: 0.08521761861 | V28: 0.05188864201 | W28: 0.1007337976
A29: 1962 | B29: 54764 | C29: 46262 | D29: 40404 | F29: 1268 | G29: 4590 | I29: 8502 | J29: 2932 | K29: 5570 | N29: 1962 | O29: 0.7377839457 | P29: 0.2622160543 | R29: 1962 | S29: 0.7377839457 | T29: 0.02315389672 | U29: 0.0838141845 | V29: 0.05353882112 | W29: 0.101709152
A30: 1963 | B30: 55270 | C30: 46872 | D30: 40888 | F30: 1295 | G30: 4689 | I30: 8398 | J30: 2838 | K30: 5560 | N30: 1963 | O30: 0.7397865026 | P30: 0.2602134974 | R30: 1963 | S30: 0.7397865026 | T30: 0.02343043242 | U30: 0.08483806767 | V30: 0.05134792835 | W30: 0.1005970689
A31: 1964 | B31: 56149 | C31: 47381 | D31: 41341 | F31: 1204 | G31: 4836 | I31: 8768 | J31: 2965 | K31: 5803 | N31: 1964 | O31: 0.7362731304 | P31: 0.2637268696 | R31: 1964 | S31: 0.7362731304 | T31: 0.02144294645 | U31: 0.08612798091 | V31: 0.05280592709 | W31: 0.1033500151
A32: 1965 | B32: 57436 | C32: 47838 | D32: 41689 | F32: 1167 | G32: 4982 | I32: 9598 | J32: 3277 | K32: 6321 | N32: 1965 | O32: 0.7258339717 | P32: 0.2741660283 | R32: 1965 | S32: 0.7258339717 | T32: 0.02031826729 | U32: 0.08674002368 | V32: 0.05705480883 | W32: 0.1100529285
A33: 1966 | B33: 58406 | C33: 48399 | D33: 42263 | F33: 1163 | G33: 4973 | I33: 10007 | J33: 3299 | K33: 6708 | N33: 1966 | O33: 0.7236071636 | P33: 0.2763928364 | R33: 1966 | S33: 0.7236071636 | T33: 0.01991233777 | U33: 0.08514536178 | V33: 0.05648392288 | W33: 0.1148512139
A34: 1967 | B34: 59236 | C34: 49086 | D34: 42743 | F34: 1190 | G34: 5153 | I34: 10150 | J34: 3419 | K34: 6731 | N34: 1967 | O34: 0.7215713418 | P34: 0.2784286582 | R34: 1967 | S34: 0.7215713418 | T34: 0.02008913499 | U34: 0.08699101897 | V34: 0.05771827942 | W34: 0.1136302249
A35: 1968 | B35: 60813 | C35: 50012 | D35: 43507 | F35: 1195 | G35: 5310 | I35: 10801 | J35: 3658 | K35: 7143 | N35: 1968 | O35: 0.7154226892 | P35: 0.2845773108 | R35: 1968 | S35: 0.7154226892 | T35: 0.0196504037 | U35: 0.08731685659 | V35: 0.06015161232 | W35: 0.1174584382
A36: 1969 | B36: 62214 | C36: 50729 | D36: 44086 | F36: 1221 | G36: 5422 | I36: 11485 | J36: 3890 | K36: 7595 | N36: 1969 | O36: 0.7086186389 | P36: 0.2913813611 | R36: 1969 | S36: 0.7086186389 | T36: 0.0196258077 | U36: 0.08715080207 | V36: 0.06252611952 | W36: 0.1220786318
A37: 1970 | B37: 63401 | C37: 51456 | D37: 44728 | F37: 1228 | G37: 5500 | I37: 11945 | J37: 4063 | K37: 7882 | N37: 1970 | O37: 0.7054778316 | P37: 0.2945221684 | R37: 1970 | S37: 0.7054778316 | T37: 0.01936877967 | U37: 0.08674942036 | V37: 0.06408416271 | W37: 0.1243198057
A38: 1971 | B38: 64778 | C38: 52102 | D38: 44928 | F38: 1254 | G38: 5920 | I38: 12676 | J38: 4403 | K38: 8273 | N38: 1971 | O38: 0.6935688042 | P38: 0.3064311958 | R38: 1971 | S38: 0.6935688042 | T38: 0.01935842416 | U38: 0.09138905184 | V38: 0.0679706073 | W38: 0.1277131125
A39: 1972 | B39: 66676 | C39: 53163 | D39: 45724 | F39: 1331 | G39: 6108 | I39: 13513 | J39: 4839 | K39: 8674 | N39: 1972 | O39: 0.685763993 | P39: 0.314236007 | R39: 1972 | S39: 0.685763993 | T39: 0.01996220529 | U39: 0.091607175 | V39: 0.07257483952 | W39: 0.1300917871
A40: 1973 | B40: 68251 | C40: 54264 | D40: 46297 | F40: 1432 | G40: 6535 | I40: 13986 | J40: 5129 | K40: 8858 | N40: 1973 | O40: 0.6783343834 | P40: 0.3216656166 | R40: 1973 | S40: 0.6783343834 | T40: 0.02098137756 | U40: 0.09574951283 | V40: 0.07514908206 | W40: 0.1297856442
A41: 1974 | B41: 69859 | C41: 54917 | D41: 46787 | F41: 1421 | G41: 6709 | I41: 14942 | J41: 5654 | K41: 9288 | N41: 1974 | O41: 0.6697347514 | P41: 0.3302652486 | R41: 1974 | S41: 0.6697347514 | T41: 0.02034097253 | U41: 0.09603630169 | V41: 0.08093445369 | W41: 0.1329535207
A42: 1975 | B42: 71120 | C42: 55563 | D42: 46951 | F42: 1485 | G42: 7127 | I42: 15557 | J42: 5912 | K42: 9645 | N42: 1975 | O42: 0.6601659168 | P42: 0.3398340832 | R42: 1975 | S42: 0.6601659168 | T42: 0.02088020247 | U42: 0.1002109111 | V42: 0.08312710911 | W42: 0.1356158605
A43: 1976 | B43: 72867 | C43: 56056 | D43: 47297 | F43: 1424 | G43: 7335 | I43: 16811 | J43: 6548 | K43: 10263 | N43: 1976 | O43: 0.6490866922 | P43: 0.3509133078 | R43: 1976 | S43: 0.6490866922 | T43: 0.01954245406 | U43: 0.1006628515 | V43: 0.08986235196 | W43: 0.1408456503
A44: 1977 | B44: 74142 | C44: 56472 | D44: 47471 | F44: 1461 | G44: 7540 | I44: 17669 | J44: 6971 | K44: 10698 | N44: 1977 | O44: 0.6402713712 | P44: 0.3597286288 | R44: 1977 | S44: 0.6402713712 | T44: 0.01970543012 | U44: 0.1016967441 | V44: 0.09402228157 | W44: 0.1442906854
A45: 1978 | B45: 76030 | C45: 56958 | D45: 47357 | F45: 1564 | G45: 8037 | I45: 19071 | J45: 7811 | K45: 11261 | N45: 1978 | O45: 0.6228725503 | P45: 0.3771274497 | R45: 1978 | S45: 0.6228725503 | T45: 0.02057082731 | U45: 0.1057082731 | V45: 0.1027357622 | W45: 0.1481125871
A46: 1979 | B46: 77330 | C46: 57498 | D46: 47662 | F46: 1616 | G46: 8220 | I46: 19831 | J46: 8064 | K46: 11767 | N46: 1979 | O46: 0.6163455321 | P46: 0.3836544679 | R46: 1979 | S46: 0.6163455321 | T46: 0.02089745248 | U46: 0.1062976852 | V46: 0.1042803569 | W46: 0.1521660416
A47: 1980 | B47: 79108 | C47: 58426 | D47: 48180 | F47: 1706 | G47: 8540 | I47: 20682 | J47: 8594 | K47: 12088 | N47: 1980 | O47: 0.6080023769 | P47: 0.3919976231 | R47: 1980 | S47: 0.6080023769 | T47: 0.02145439239 | U47: 0.1077671586 | V47: 0.1090299099 | W47: 0.1537461622
A48: 1980c | B48: 80776 | C48: 59550 | D48: 49112 | F48: 1733 | G48: 8705 | I48: 21226 | J48: 8807 | K48: 12419 | N48: 1981 | O48: 0.5984605672 | P48: 0.4015394328 | R48: 1981 | S48: 0.5984605672 | T48: 0.02346785159 | U48: 0.1102612665 | V48: 0.112652972 | W48: 0.1551573427
A49: 1981 | B49: 82368 | C49: 60309 | D49: 49294 | F49: 1933 | G49: 9082 | I49: 22059 | J49: 9279 | K49: 12780 | N49: 1982 | O49: 0.5941791277 | P49: 0.4058208723 | R49: 1982 | S49: 0.5941791277 | T49: 0.02377674285 | U49: 0.1125743771 | V49: 0.1132208747 | W49: 0.1562488776
A50: 1982 | B50: 83527 | C50: 61019 | D50: 49630 | F50: 1986 | G50: 9403 | I50: 22508 | J50: 9457 | K50: 13051 | N50: 1983 | O50: 0.5947234205 | P50: 0.4052765795 | R50: 1983 | S50: 0.5947234205 | T50: 0.02402345146 | U50: 0.1128363402 | V50: 0.113372578 | W50: 0.1550442098
A51: 1983 | B51: 83918 | C51: 61393 | D51: 49908 | F51: 2016 | G51: 9469 | I51: 22525 | J51: 9514 | K51: 13011 | N51: 1984 | O51: 0.5871848986 | P51: 0.4128151014 | R51: 1984 | S51: 0.5871848986 | T51: 0.02389494665 | U51: 0.1160276703 | V51: 0.1136006566 | W51: 0.1593035526
A52: 1984 | B52: 85407 | C52: 61997 | D52: 50090 | F52: 2030 | G52: 9878 | I52: 23410 | J52: 9752 | K52: 13658 | N52: 1985 | O52: 0.5801426448 | P52: 0.4198573552 | R52: 1985 | S52: 0.5801426448 | T52: 0.02567145606 | U52: 0.1167083386 | V52: 0.1165355057 | W52: 0.1609420549
A53: 1984b | B53: 85290 | C53: 62015 | D53: 50081 | F53: 2038 | G53: 9896 | I53: 23276 | J53: 9689 | K53: 13587 | N53: 1986 | O53: 0.5757873793 | P53: 0.4242126207 | R53: 1986 | S53: 0.5757873793 | T53: 0.02728978724 | U53: 0.115433313 | V53: 0.1203735106 | W53: 0.1611160099
A54: 1985 | B54: 86789 | C54: 62706 | D54: 50350 | F54: 2228 | G54: 10129 | I54: 24082 | J54: 10114 | K54: 13968 | N54: 1987 | O54: 0.5759675455 | P54: 0.4240324545 | R54: 1987 | S54: 0.5759675455 | T54: 0.0280512746 | U54: 0.1167313001 | V54: 0.1190446921 | W54: 0.1602163636
A55: 1986 | B55: 88458 | C55: 63558 | D55: 50933 | F55: 2414 | G55: 10211 | I55: 24900 | J55: 10648 | K55: 14252 | N55: 1988 | O55: 0.5670844124 | P55: 0.4329155876 | R55: 1988 | S55: 0.5670844124 | T55: 0.03110047847 | U55: 0.1173785172 | V55: 0.1238093148 | W55: 0.1606272771
A56: 1987 | B56: 89479 | C56: 64491 | D56: 51537 | F56: 2510 | G56: 10445 | I56: 24988 | J56: 10652 | K56: 14336 | N56: 1989 | O56: 0.5612409781 | P56: 0.4387590219 | R56: 1989 | S56: 0.5612409781 | T56: 0.03066896477 | U56: 0.117311214 | V56: 0.1279112356 | W56: 0.1628783798
A57: 1988 | B57: 91066 | C57: 65133 | D57: 51809 | F57: 2715 | G57: 10608 | I57: 25933 | J57: 11310 | K57: 14624 | N57: 1990 | O57: 0.5604572188 | P57: 0.4395427812 | R57: 1990 | S57: 0.5604572188 | T57: 0.03089547602 | U57: 0.1166614889 | V57: 0.1243317943 | W57: 0.1676647348
A58: 1988a | B58: 91124 | C58: 65204 | D58: 51675 | F58: 2834 | G58: 10696 | I58: 25919 | J58: 11282 | K58: 14637 | N58: 1991 | O58: 0.552920095 | P58: 0.447079905 | R58: 1991 | S58: 0.552920095 | T58: 0.03082322504 | U58: 0.1194757825 | V58: 0.1288277208 | W58: 0.1679531767
A59: 1989 | B59: 92830 | C59: 65837 | D59: 52100 | F59: 2847 | G59: 10890 | I59: 26994 | J59: 11874 | K59: 15120 | N59: 1992 | O59: 0.5483176369 | P59: 0.4516823631 | R59: 1992 | S59: 0.5483176369 | T59: 0.03161943785 | U59: 0.1222130471 | V59: 0.1299062392 | W59: 0.1679540917
A60: 1990 | B60: 93347 | C60: 66090 | D60: 52317 | F60: 2884 | G60: 10890 | I60: 27257 | J60: 11606 | K60: 15651 | N60: 1993 | O60: 0.550577645 | P60: 0.449422355 | R60: 1993 | S60: 0.550577645 | T60: 0.03178603281 | U60: 0.1250803725 | V60: 0.1275278452 | W60: 0.1650384751
A61: 1991 | B61: 94312 | C61: 66322 | D61: 52147 | F61: 2907 | G61: 11268 | I61: 27990 | J61: 12150 | K61: 15840 | N61: 1994 | O61: 0.54755064 | P61: 0.45244936 | R61: 1994 | S61: 0.54755064 | T61: 0.02999783744 | U61: 0.1277559805 | V61: 0.128332664 | W61: 0.1663628781
A62: 1992 | B62: 95669 | C62: 67173 | D62: 52457 | F62: 3025 | G62: 11692 | I62: 28496 | J62: 12428 | K62: 16068 | N62: 1995 | O62: 0.5440751591 | P62: 0.4559248409 | R62: 1995 | S62: 0.5440751591 | T62: 0.03258915042 | U62: 0.1234468128 | V62: 0.1332457824 | W62: 0.1666430953
A63: 1993 | B63: 96391 | C63: 68144 | D63: 53171 | F63: 3026 | G63: 11947 | I63: 28247 | J63: 12254 | K63: 15993 | N63: 1996 | O63: 0.5376755297 | P63: 0.4623244703 | R63: 1996 | S63: 0.5376755297 | T63: 0.03526152549 | U63: 0.1256085198 | V63: 0.1339797444 | W63: 0.1674746806
A64: 1993r | B64: 96426 | C64: 68216 | D64: 53090 | F64: 3065 | G64: 12061 | I64: 28210 | J64: 12297 | K64: 15914 | N64: 1997 | O64: 0.5306381041 | P64: 0.4693618959 | R64: 1997 | S64: 0.5306381041 | T64: 0.03808232196 | U64: 0.126611099 | V64: 0.1356886891 | W64: 0.1689797858
A65: 1994 | B65: 97107 | C65: 68490 | D65: 53171 | F65: 2913 | G65: 12406 | I65: 28617 | J65: 12462 | K65: 16155 | N65: 1998 | O65: 0.5297772316 | P65: 0.4702227684 | R65: 1998 | S65: 0.5297772316 | T65: 0.03814567728 | U65: 0.123400437 | V65: 0.1378452715 | W65: 0.1708411361
A66: 1995 | B66: 98990 | C66: 69305 | D66: 53858 | F66: 3226 | G66: 12220 | I66: 29686 | J66: 13190 | K66: 16496 | N66: 1999 | O66: 0.5272734274 | P66: 0.4727265726 | R66: 1999 | S66: 0.5272734274 | T66: 0.03827714346 | U66: 0.1231203188 | V66: 0.1383214279 | W66: 0.1730076824
A67: 1996 | B67: 99627 | C67: 69594 | D67: 53567 | F67: 3513 | G67: 12514 | I67: 30033 | J67: 13348 | K67: 16685 | N67: 2000 | O67: 0.5282555752 | P67: 0.4717444248 | R67: 2000 | S67: 0.5282555752 | T67: 0.03846998711 | U67: 0.1211689986 | V67: 0.1398309536 | W67: 0.1722840361
A68: 1997 | B68: 101018 | C68: 70241 | D68: 53604 | F68: 3847 | G68: 12790 | I68: 30777 | J68: 13707 | K68: 17070 | N68: 2001 | O68: 0.5229879215 | P68: 0.4770120785 | R68: 2001 | S68: 0.5229879215 | T68: 0.0395068802 | U68: 0.1192137438 | V68: 0.1418089068 | W68: 0.1764825477
A69: 1998 | B69: 102528 | C69: 70880 | D69: 54317 | F69: 3911 | G69: 12652 | I69: 31648 | J69: 14133 | K69: 17516 | N69: 2002 | O69: 0.519199978 | P69: 0.480800022 | R69: 2002 | S69: 0.519199978 | T69: 0.04060495714 | U69: 0.1202503271 | V69: 0.1425382215 | W69: 0.1774065162
A70: 1999 | B70: 103874 | C70: 71535 | D70: 54770 | F70: 3976 | G70: 12789 | I70: 32339 | J70: 14368 | K70: 17971 | N70: 2003 | O70: 0.5151063103 | P70: 0.4848936897 | R70: 2003 | S70: 0.5151063103 | T70: 0.04184115459 | U70: 0.122396161 | V70: 0.1439637664 | W70: 0.1766926077
A71: 2000 | B71: 104705 | C71: 72025 | D71: 55311 | F71: 4028 | G71: 12687 | I71: 32680 | J71: 14641 | K71: 18039 | N71: 2004 | O71: 0.5153482143 | P71: 0.4846517857 | R71: 2004 | S71: 0.5153482143 | T71: 0.04210714286 | U71: 0.1230446429 | V71: 0.1440714286 | W71: 0.1754196429
A72: 2001e | B72: 108209 | C72: 73767 | D72: 56592 | F72: 4275 | G72: 12900 | I72: 34442 | J72: 15345 | K72: 19097 | N72: 2005 | O72: 0.5115004897 | P72: 0.4884995103 | R72: 2005 | S72: 0.5115004897 | T72: 0.04324042949 | U72: 0.1233512436 | V72: 0.1459551979 | W72: 0.1759438166
A73: 2002 | B73: 109297 | C73: 74329 | D73: 56747 | F73: 4438 | G73: 13143 | I73: 34969 | J73: 15579 | K73: 19390 | N73: 2006 | O73: 0.5086288292 | P73: 0.4913711708 | R73: 2006 | S73: 0.5086288292 | T73: 0.04484892992 | U73: 0.1232077913 | V73: 0.146462792 | W73: 0.1768604001
A74: 2003 | B74: 111278 | C74: 75596 | D74: 57320 | F74: 4656 | G74: 13620 | I74: 35682 | J74: 16020 | K74: 19662 | N74: 2007 | O74: 0.50809837 | P74: 0.49190163 | R74: 2007 | S74: 0.50809837 | T74: 0.04364241322 | U74: 0.1242640784 | V74: 0.1494513451 | W74: 0.1745437933
A75: 2004 | B75: 112000 | C75: 76217 | D75: 57719 | F75: 4716 | G75: 13781 | I75: 35783 | J75: 16136 | K75: 19647 | N75: 2008 | O75: 0.4998158979 | P75: 0.5001841021 | R75: 2008 | S75: 0.4998158979 | T75: 0.04367073975 | U75: 0.1233398697 | V75: 0.1530359727 | W75: 0.1801460829
A76: 2005 | B76: 113343 | C76: 76858 | D76: 57975 | F76: 4901 | G76: 13981 | I76: 36485 | J76: 16543 | K76: 19942 | N76: 2009 | O76: 0.504501583 | P76: 0.495498417 | R76: 2009 | S76: 0.504501583 | T76: 0.04481955266 | U76: 0.1235695207 | V76: 0.1509971753 | W76: 0.1761121684
A77: 2006 | B77: 114384 | C77: 77402 | D77: 58179 | F77: 5130 | G77: 14093 | I77: 36982 | J77: 16753 | K77: 20230 | N77: 2010 | O77: 0.4969456686 | P77: 0.5030543314 | R77: 2010 | S77: 0.4969456686 | T77: 0.04747400841 | U77: 0.1262825639 | V77: 0.1553795368 | W77: 0.1739182222
A78: 2007 | B78: 116011 | C78: 78425 | D78: 58945 | F78: 5063 | G78: 14416 | I78: 37587 | J78: 17338 | K78: 20249 | N78: 2011 | O78: 0.4890975343 | P78: 0.5109024657 | R78: 2011 | S78: 0.4890975343 | T78: 0.04709531632 | U78: 0.1270356133 | V78: 0.1581628824 | W78: 0.1786086536
A79: 2008 | B79: 116783 | C79: 77873 | D79: 58370 | F79: 5100 | G79: 14404 | I79: 38910 | J79: 17872 | K79: 21038 | N79: 2012 | O79: 0.4868438439 | P79: 0.5131561561 | R79: 2012 | S79: 0.4868438439 | T79: 0.04862739916 | U79: 0.1294060322 | V79: 0.1585263123 | W79: 0.1765964124
A80: 2009 | B80: 117181 | C80: 78850 | D80: 59118 | F80: 5252 | G80: 14480 | I80: 38331 | J80: 17694 | K80: 20637 | N80: 2013 | O80: 0.4834597702 | P80: 0.5165402298 | R80: 2013 | S80: 0.4834597702 | T80: 0.05086600413 | U80: 0.1263198295 | V80: 0.1612539707 | W80: 0.1781004254
A81: 2010 | B81: 117538 | C81: 78833 | D81: 58410 | F81: 5580 | G81: 14843 | I81: 38705 | J81: 18263 | K81: 20442 | N81: 2014 | O81: 0.4838877212 | P81: 0.5161122788 | R81: 2014 | S81: 0.4838877212 | T81: 0.05115678939 | U81: 0.1251328827 | V81: 0.159524138 | W81: 0.1803065837
A82: 2011 | B82: 118682 | C82: 78613 | D82: 58036 | F82: 5559 | G82: 15019 | I82: 40069 | J82: 18835 | K82: 21234 | N82: 2015 | O82: 0.4816714424 | P82: 0.5183285576 | R82: 2015 | S82: 0.4816714424 | T82: 0.0494594139 | U82: 0.124764221 | V82: 0.1616781847 | W82: 0.1824267379
A83: 2011r | B83: 119927 | C83: 79539 | D83: 58656 | F83: 5648 | G83: 15235 | I83: 40388 | J83: 18968 | K83: 21420
A84: 2012 | B84: 121084 | C84: 80506 | D84: 58949 | F84: 5888 | G84: 15669 | I84: 40578 | J84: 19195 | K84: 21383
A85: 2013 | B85: 122459 | C85: 80902 | D85: 59204 | F85: 6229 | G85: 15469 | I85: 41558 | J85: 19747 | K85: 21810
A86: 2014s | B86: 123229 | C86: 81353 | D86: 59629 | F86: 6304 | G86: 15420 | I86: 41877 | J86: 19658 | K86: 22219
A87: 2015 | B87: 124587 | C87: 81716 | D87: 60010 | F87: 6162 | G87: 15544 | I87: 42871 | J87: 20143 | K87: 22728
A90: Source: U.S. Census Bureau, Current Population Survey, March and Annual Social and Economic Supplements, 2015 and earlier. Table HH-1. http://www.census.gov/hhes/families/data/households.html, (18.01.2016)
A93: r Revised based on population from the most recent decennial census.
A94: a Data based on 1988 revised processing.
A95: b Incorporates Hispanic-origin population controls.
A96: c Revised using population controls based on the 1980 census.
A97: d Based on 1940 census.
A98: e This data is from the expanded CPS sample and uses population controls based on Census 2000.
A99: s The 2014 CPS ASEC included redesigned questions for income and health insurance coverage. All of the approximately 98,000 addresses were selected to receive the improved set of health insurance coverage items. The improved income questions were implemented using a split panel design. Approximately 68,000 addresses were selected to receive a set of income questions similar to those used in the 2013 CPS ASEC. The remaining 30,000 addresses were selected to receive the redesigned income questions. The source of data for this table is the CPS ASEC sample of 98,000 addresses.
A104: Note: This table uses the householder's person weight to describe characteristics of people living in households. As a result, estimates of the number of households do not match estimates of housing units from the Housing Vacancy Survey (HVS). The HVS is weighted to housing units, rather than the population, in order to more accurately estimate the number of occupied and vacant housing units. If you are primarily interested in housing inventory estimates, then see the published tables and reports here: http://www.census.gov/housing/hvs/. If you are primarily interested in characteristics about the population and people who live in households, then see the H table series and reports here: http://www.census.gov/hhes/families/data/cps.html.
A112: FOR FURTHER INFORMATION contact:
A113: Fertility and Family Statistics Branch
A114: 301-763-2416
A116: Internet Release Date: November 2015

Sheet Figure 5
B2: Current Marital Status of U.S. Women, Age 15 and Older, 1950-2006
B4: Married, Spouse at Present (%) | C4: Never Married (%) | D4: Divorced / Separated (%)
A5: Year
A6: 1950 | B6: 66.8 | C6: 18.8 | D6: 2.4
A7: 1960 | B7: 63 | C7: 17.8 | D7: 5
A8: 1970 | B8: 58.4 | C8: 22.1 | D8: 5.7
A9: 1980 | B9: 55.4 | C9: 22.4 | D9: 9.4
A10: 1990 | B10: 53.3 | C10: 22.8 | D10: 11.8
A11: 2000 | B11: 51.5 | C11: 25.1 | D11: 12.6
A12: 2006 | B12: 49.6 | C12: 26.2 | D12: 13.3
A31: Source: Averett, Susan L. and Hoffman, Saul D., "Women and the Economy." 2010. p. 54 (original source: Families and Living Arrangements, Table A1, 2006 and 2000; Current Population Reports, Series P-20: #450, Table 1 (1990); #365, Table 1 (1980); #212,
A32: Table 1 (1970); Series PC(2)-4B, Table (1960, 1950).

Sheet Figure 6
B2: Divorces and annulments and rates United States, 1940-90
B4: Year | C4: Married women 15 years and over
B5: 1990 | C5: 20.9
B6: 1989 | C6: 20.4
B7: 1988 | C7: 20.7
B8: 1987 | C8: 20.8
B9: 1986 | C9: 21.2
B10: 1985 | C10: 21.7
B11: 1984 | C11: 21.5
B12: 1983 | C12: 21.3
B13: 1982 | C13: 21.7
B14: 1981 | C14: 22.6
B15: 1980 | C15: 22.6
B16: 1979 | C16: 22.8
B17: 1978 | C17: 21.9
B18: 1977 | C18: 21.1
B19: 1976 | C19: 21.1
B20: 1975 | C20: 20.3
B21: 1974 | C21: 19.3
B22: 1973 | C22: 18.2
B23: 1972 | C23: 17 | E23: Clarke, Sally Advance Report of Final Divorce Statistics, 1989 and 1990. Monthly Vital Statistics Reports, March 1995a, 43 (8 suppl.). Hyattsville, Maryland: National Center for Health Statistics. p.9
B24: 1971 | C24: 15.8 | E24: http://www.cdc.gov/nchs/data/mvsr/supp/mv43_09s.pdf
B25: 1970 | C25: 14.9
B26: 1969 | C26: 13.4 | E26: Note: Data refer only to avents occurring within the United States. Alaska included beginning with 1959, and Hawaii, beginning with 1960. Rates per 1,000 population enumerated as of April 1 for 1640, 1950,
B27: 1968 | C27: 12.5 | E27: 1860, 1970, and 1980 and estimated as of July 1 for all other years
B28: 1967 | C28: 11.2
B29: 1966 | C29: 10.9
B30: 1965 | C30: 10.6
B31: 1964 | C31: 10
B32: 1963 | C32: 9.6
B33: 1962 | C33: 9.4
B34: 1961 | C34: 9.6
B35: 1960 | C35: 9.2
B36: 1959 | C36: 9.3
B37: 1958 | C37: 8.9
B38: 1957 | C38: 9.2
B39: 1956 | C39: 9.4
B40: 1955 | C40: 9.3
B41: 1954 | C41: 9.5
B42: 1953 | C42: 9.9
B43: 1952 | C43: 10.1
B44: 1951 | C44: 9.9
B45: 1950 | C45: 10.3
B46: 1949 | C46: 10.6
B47: 1948 | C47: 11.2
B48: 1947 | C48: 13.6
B49: 1946 | C49: 17.9
B50: 1945 | C50: 14.4
B51: 1944 | C51: 12
B52: 1943 | C52: 11
B53: 1942 | C53: 10.1
B54: 1941 | C54: 9.4
B55: 1940 | C55: 8.8

Sheet Figure 7
B2: Labor Force Participation, by Gender
C6: Male | D6: Female | E6: All
B7: 1890 | C7: =J22*100 -> 88.43053981 | D7: =J24*100 -> 19.62146001 | E7: =J20*100 -> 55.04604749 | G7: 1890 | L7: 1900 | Q7: 1920 | V7: 1930 | AA7: 1940 | AF7: 1950
B8: 1900 | C8: =O22*100 -> 89.98137169 | D8: =O24*100 -> 21.43978262 | E8: =O20*100 -> 56.69270094 | G8: Population
B9: 1910 | G9: Age | H9: All | I9: Male | J9: Female | L9: Age | M9: All | N9: Male | O9: Female | Q9: Age | R9: All | S9: Male | T9: Female | V9: Age | W9: All | X9: Male | Y9: Female | AA9: Age | AB9: All | AC9: Male | AD9: Female | AF9: Age | AG9: All | AH9: Male | AI9: Female
B10: 1920 | C10: =T22*100 -> 89.05965318 | D10: =T24*100 -> 24.59409282 | E10: =T20*100 -> 57.64761606 | G10: Total | H10: 62622250 | I10: 32067880 | J10: 30554370 | L10: Total | M10: 75994575 | N10: 38816448 | O10: 37178127 | Q10: Total | R10: 105710620 | S10: 53900431 | T10: 51810189 | V10: Total | W10: 122775046 | X10: 62137080 | Y10: 60637966 | AA10: Total | AB10: 131669275 | AC10: 66061592 | AD10: 65607683 | AF10: Total | AG10: 150697361 | AH10: 74833239 | AI10: 75864122
B11: 1930 | C11: =Y22*100 -> 86.8260306 | D11: =Y24*100 -> 25.68522932 | E11: =Y20*100 -> 56.6477614 | G11: Under 5 years | H11: 7634693 | I11: 3884869 | J11: 3749824 | L11: Under 5 years | M11: 9170628 | N11: 4633612 | O11: 4537016 | Q11: Under 5 years | R11: 11573230 | S11: 5857461 | T11: 5715769 | V11: Under 5 years | W11: 11444390 | X11: 5806174 | Y11: 5638216 | AA11: Under 5 years | AB11: 10541524 | AC11: 5354808 | AD11: 5186716 | AF11: Under 5 years | AG11: 16163571 | AH11: 8236164 | AI11: 7927407
B12: 1940 | C12: =AD22*100 -> 84.84623648 | D12: =AD24*100 -> 28.44349541 | E12: =AD20*100 -> 56.70183104 | G12: 5-9 years | H12: 7573998 | I12: 3830352 | J12: 3743646 | L12: 5-9 years | M12: 8874123 | N12: 4479396 | O12: 4394727 | Q12: 5-9 years | R12: 11398075 | S12: 5753001 | T12: 5645074 | V12: 5-9 years | W12: 12607609 | X12: 6381108 | Y12: 6226501 | AA12: 5-9 years | AB12: 10684622 | AC12: 5418823 | AD12: 5265799 | AF12: 5-9 years | AG12: 13199685 | AH12: 6714555 | AI12: 6485130
B13: 1950 | C13: =AI22*100 -> 83.44011842 | D13: =AI24*100 -> 32.17679881 | E13: =AI20*100 -> 57.52292351 | G13: 10-14 years | H13: 7033509 | I13: 3574787 | J13: 3458722 | L13: 10-14 years | M13: 8080234 | N13: 4083041 | O13: 3997193 | Q13: 10-14 years | R13: 10641137 | S13: 5369306 | T13: 5271831 | V13: 10-14 years | W13: 12004877 | X13: 6068777 | Y13: 5936100 | AA13: 10-14 years | AB13: 11745935 | AC13: 5952329 | AD13: 5793606 | AF13: 10-14 years | AG13: 11119268 | AH13: 5660399 | AI13: 5458869
B14: 1960 | C14: 89.80181986 | D14: 41.96847439 | E14: 65.56265571 | G14: 65 years and over | H14: 2417288 | I14: 1233719 | J14: 1183569 | L14: 65 years and over | M14: 3080498 | N14: 1555418 | O14: 1525080 | Q14: 65 years and over | R14: 4933215 | S14: 2483071 | T14: 2450144 | V14: 65 years and over | W14: 6633805 | X14: 3325211 | Y14: 3308594 | AA14: 65 years and over | AB14: 9019314 | AC14: 4406120 | AD14: 4613194 | AF14: 65 years and over | AG14: 12269537 | AH14: 5796974 | AI14: 6472563
B15: 1961 | C15: 89.61274323 | D15: 42.51229242 | E15: 65.73578517 | H15: =H10-(H11+H12+H13+H14) -> 37962762 | I15: =I10-(I11+I12+I13+I14) -> 19544153 | J15: =J10-(J11+J12+J13+J14) -> 18418609 | K15: =SUM(I15:J15) -> 37962762 | M15: =M10-(M11+M12+M13+M14) -> 46789092 | N15: =N10-(N11+N12+N13+N14) -> 24064981 | O15: =O10-(O11+O12+O13+O14) -> 22724111 | P15: =SUM(N15:O15) -> 46789092 | R15: =R10-(R11+R12+R13+R14) -> 67164963 | S15: =S10-(S11+S12+S13+S14) -> 34437592 | T15: =T10-(T11+T12+T13+T14) -> 32727371 | U15: =SUM(S15:T15) -> 67164963 | W15: =W10-(W11+W12+W13+W14) -> 80084365 | X15: =X10-(X11+X12+X13+X14) -> 40555810 | Y15: =Y10-(Y11+Y12+Y13+Y14) -> 39528555 | Z15: =SUM(X15:Y15) -> 80084365 | AB15: =AB10-(AB11+AB12+AB13+AB14) -> 89677880 | AC15: =AC10-(AC11+AC12+AC13+AC14) -> 44929512 | AD15: =AD10-(AD11+AD12+AD13+AD14) -> 44748368 | AE15: =SUM(AC15:AD15) -> 89677880 | AG15: =AG10-(AG11+AG12+AG13+AG14) -> 97945300 | AH15: =AH10-(AH11+AH12+AH13+AH14) -> 48425147 | AI15: 49520153 | AJ15: =SUM(AH15:AI15) -> 97945300
B16: 1962 | C16: 89.07926553 | D16: 42.47503304 | E16: 65.44391479
B17: 1963 | C17: 88.43059469 | D17: 42.89597321 | E17: 65.32873047 | G17: Labor Force
B18: 1964 | C18: 88.05970149 | D18: 43.32241791 | E18: 65.35161409 | H18: Total (16+) | I18: 65 years and over | J18: 16-64 | M18: Total (16+) | N18: 65 years and over | O18: 16-64 | R18: Total (16+) | S18: 65 years and over | T18: 16-64 | W18: Total (16+) | X18: 65 years and over | Y18: 16-64 | AB18: Total (16+) | AC18: 65 years and over | AD18: 16-64 | AG18: Total (16+) | AH18: 65 years and over | AI18: 16-64
B19: 1965 | C19: 87.70189906 | D19: 43.97450854 | E19: 65.49562296 | G19: All | H19: 21833000 | I19: =I23+I21 -> 936000 | J19: =H19-I19 -> 20897000 | L19: All | M19: 27640000 | N19: 1114000 | O19: =M19-N19 -> 26526000 | Q19: All | R19: 40282000 | S19: =S21+S23 -> 1563000 | T19: =R19-S19 -> 38719000 | V19: All | W19: 47404000 | X19: =X21+X23 -> 2038000 | Y19: =W19-X19 -> 45366000 | AA19: All | AB19: 52966000 | AC19: =AC23+AC21 -> 2117000 | AD19: =AB19-AC19 -> 50849000 | AF19: All | AG19: 59223000 | AH19: =AH23+AH21 -> 2882000 | AI19: =AG19-AH19 -> 56341000
B20: 1966 | C20: 87.53317527 | D20: 45.1726737 | E20: 66.01040959 | G20: All LFPR | J20: =J19/H15 -> 0.5504604749 | L20: All LFPR | O20: =O19/M15 -> 0.5669270094 | Q20: All LFPR | T20: =T19/R15 -> 0.5764761606 | V20: All LFPR | Y20: =Y19/W15 -> 0.566477614 | AA20: All LFPR | AD20: =AD19/AB15 -> 0.5670183104 | AF20: All LFPR | AI20: =AI19/AG15 -> 0.5752292351
B21: 1967 | C21: 88.27262797 | D21: 46.52401866 | E21: 66.3441937 | G21: Male | H21: 18129000 | I21: 846000 | J21: =H21-I21 -> 17283000 | L21: Male | M21: 22641000 | N21: 987000 | O21: =M21-N21 -> 21654000 | Q21: Male | R21: 32053000 | S21: 1383000 | T21: =R21-S21 -> 30670000 | V21: Male | W21: 37008000 | X21: 1795000 | Y21: =W21-X21 -> 35213000 | AA21: Male | AB21: 39959000 | AC21: 1838000 | AD21: =AB21-AC21 -> 38121000 | AF21: Male | AG21: 42779000 | AH21: 2373000 | AI21: =AG21-AH21 -> 40406000
B22: 1968 | C22: 87.81997813 | D22: 47.2160841 | E22: 66.4845846 | G22: Male LFPR | J22: =J21/I15 -> 0.8843053981 | L22: Male LFPR | O22: =O21/N15 -> 0.8998137169 | Q22: Male LFPR | T22: =T21/S15 -> 0.8905965318 | V22: Male LFPR | Y22: =Y21/X15 -> 0.868260306 | AA22: Male LFPR | AD22: =AD21/AC15 -> 0.8484623648 | AF22: Male LFPR | AI22: =AI21/AH15 -> 0.8344011842
B23: 1969 | C23: 87.51161054 | D23: 48.47208281 | E23: 67.00266261 | G23: Female | H23: 3704000 | I23: 90000 | J23: 3614000 | L23: Female | M23: 4999000 | N23: 127000 | O23: =M23-N23 -> 4872000 | Q23: Female | R23: 8229000 | S23: 180000 | T23: =R23-S23 -> 8049000 | V23: Female | W23: 10396000 | X23: 243000 | Y23: =W23-X23 -> 10153000 | AA23: Female | AB23: 13007000 | AC23: 279000 | AD23: =AB23-AC23 -> 12728000 | AF23: Female | AG23: 16443000 | AH23: 509000 | AI23: 15934000
B24: 1970 | C24: 87.28851252 | D24: 49.27749402 | E24: 67.37213852 | G24: Female LFPR | J24: =J23/J15 -> 0.1962146001 | L24: Female LFPR | O24: =O23/O15 -> 0.2143978262 | Q24: Female LFPR | T24: =T23/T15 -> 0.2459409282 | V24: Female LFPR | Y24: =Y23/Y15 -> 0.2568522932 | AA24: Female LFPR | AD24: =AD23/AD15 -> 0.2844349541 | AF24: Female LFPR | AI24: =AI23/AI15 -> 0.3217679881
B25: 1971 | C25: 86.76147091 | D25: 49.37688283 | E25: 67.24336316 | G25: Explanation: There exist Data on Labor Force Participation as decennial census from 1890 to 1950 in the source we refer to. Unfortunately this data captures all persons that are "16 years old and over" and thus is not comparable to the annual data we use for the time period 1960-2013 which captures all
B26: 1972 | C26: 86.59922022 | D26: 50.14396731 | E26: 67.62340655 | G26: persons "between 16 and 64 years" . We therefore use the population data aswell as the data on how many persons take part in the labor force for a given year and substracted all persons out, that were out of the range 16-64 years. With those numbers we can calculate Labor Force Participation rates, that are
B27: 1973 | C27: 86.60478107 | D27: 51.24918366 | E27: 68.23247151 | G27: comparable to the one from the OECD and thus can be captured in a common diagram.
B28: 1974 | C28: 86.55674415 | D28: 52.54219582 | E28: 68.9117005
B29: 1975 | C29: 85.72059079 | D29: 53.43168886 | E29: 68.99391471 | G29: Sources: | H29: Annual Data from 1960 to 2013 by OECD.Stat: LFS by sex and age - indicators, Data extracted on 12 Mar 2015 15:59 UTC (GMT) from OECD. | R29: http://stats.oecd.org/Index.aspx?DataSetCode=LFS_SEXAGE_I_R#
B30: 1976 | C30: 85.53788616 | D30: 54.66551326 | E30: 69.56596329 | H30: Decennial Data from 1890 to 1950 (except 1910) by the U.s: Department of Commerce, Burea of the Census, Historical Statistics of the U.S. Colonial Times to 1970, Bicentennial Edition, part 1, 1975, Tables A119-134 and D 29-41
B31: 1977 | C31: 85.79883453 | D31: 56.045249 | E31: 70.41535045 | H31: Note: We calculated the rates from 1890 to 2050 using the numbers from Tables A119-134 and D 29-41.Therefore we divided the the people in the Labor Force (16-64 years) by the population (15-64years)
B32: 1978 | C32: 86.01270352 | D32: 57.89143264 | E32: 71.48478886 | H32: (https://fraser.stlouisfed.org/docs/publications/histstatus/hstat1970_cen_1975_v1.pdf)
B33: 1979 | C33: 86.10683892 | D33: 59.14670988 | E33: 72.19178568
B34: 1980 | C34: 85.80215791 | D34: 59.92024333 | E34: 72.45003278
B35: 1981 | C35: 85.45108186 | D35: 60.74569305 | E35: 72.70768659
B36: 1982 | C36: 85.17300503 | D36: 61.49397209 | E36: 72.96456411
B37: 1983 | C37: 85.05774282 | D37: 61.94510646 | E37: 73.15790538
B38: 1984 | C38: 85.25481687 | D38: 62.91989162 | E38: 73.76592197
B39: 1985 | C39: 85.38413321 | D39: 64.11132812 | E39: 74.4355532
B40: 1986 | C40: 85.43644984 | D40: 65.12417503 | E40: 75.00261281
B41: 1987 | C41: 85.43623537 | D41: 66.05986545 | E41: 75.49063351
B42: 1988 | C42: 85.48626919 | D42: 66.7679116 | E42: 75.88669303
B43: 1989 | C43: 85.89941014 | D43: 67.7507414 | E43: 76.59634014
B44: 1990 | C44: 85.59391278 | D44: 67.83346202 | E44: 76.53249458
B45: 1991 | C45: 85.09313626 | D45: 67.74735101 | E45: 76.24934098
B46: 1992 | C46: 85.18439592 | D46: 68.40631487 | E46: 76.63657718
B47: 1993 | C47: 84.88103803 | D47: 68.59313315 | E47: 76.58948625
B48: 1994 | C48: 84.2870475 | D48: 69.43828748 | E48: 76.73142223
B49: 1995 | C49: 84.28865678 | D49: 69.72193494 | E49: 76.87286478
B50: 1996 | C50: 84.26761583 | D50: 70.11853937 | E50: 77.0638996
B51: 1997 | C51: 84.23326647 | D51: 70.7101511 | E51: 77.36701257
B52: 1998 | C52: 84.2317901 | D52: 70.70630023 | E52: 77.36380243
B53: 1999 | C53: 83.98589763 | D53: 70.73304525 | E53: 77.23156976
B54: 2000 | C54: 83.9232099 | D54: 70.7149359 | E54: 77.19905533
B55: 2001 | C55: 83.44609378 | D55: 70.40435998 | E55: 76.81139449
B56: 2002 | C56: 82.95906057 | D56: 70.05534799 | E56: 76.39990858
B57: 2003 | C57: 82.16989341 | D57: 69.6716047 | E57: 75.81921388
B58: 2004 | C58: 81.90417836 | D58: 69.16800735 | E58: 75.44516792
B59: 2005 | C59: 81.81239186 | D59: 69.17578274 | E59: 75.40808527
B60: 2006 | C60: 81.94074602 | D60: 69.29918724 | E60: 75.54049927
B61: 2007 | C61: 81.68508402 | D61: 69.06820753 | E61: 75.30106318
B62: 2008 | C62: 81.43445577 | D62: 69.29639455 | E62: 75.2911619
B63: 2009 | C63: 80.35734387 | D63: 69.02639835 | E63: 74.62424736
B64: 2010 | C64: 79.55104364 | D64: 68.39424538 | E64: 73.90784683
B65: 2011 | C65: 78.89524002 | D65: 67.81038151 | E65: 73.2918105
B66: 2012 | C66: 78.82999909 | D66: 67.58022499 | E66: 73.10541367
B67: 2013 | C67: 78.65768975 | D67: 67.16455622 | E67: 72.81069082

Sheet Figure 8 + 9
B2: Market vs. Home Time, Men and Market vs. Home Time, Women
B4: All Individuals | D4: Men | F4: Women
B5: Core Market Work | C5: Total Non Market Work | D5: Core Market Work | E5: Total Non Market Work | F5: Core Market Work | G5: Total Non Market Work
A6: 1965 | B6: 28.25 | C6: 23.52 | D6: 42.07 | E6: 9.77 | F6: 16.9 | G6: 34.8
A7: 1975 | B7: 27.37 | C7: 20.3 | D7: 38.75 | E7: 10.71 | F7: 17.06 | G7: 29
A8: 1985 | B8: 27.29 | C8: 20.64 | D8: 35.59 | E8: 13.67 | F8: 20.51 | G8: 26.26
A9: 1993 | B9: 30.61 | C9: 17.94 | D9: 38.08 | E9: 12.22 | F9: 24.25 | G9: 22.8
A10: 2003 | B10: 29.82 | C10: 18 | D10: 35.87 | E10: 13.66 | F10: 23.94 | G10: 22.21
A29: Mark Aguiar, Erik Hurst 2007: Measuring Trends in Leisure: The Allocation of Time over five decades
A30: QJE, 2007

Sheet Figure 10
A2: Gender Wage Gap, Full-Time, Year-Round All Workers by Median Income and Sex: 1955 to 2014
A4: (People 15 years old and over beginning with March 1980, and people 14 years old and over as of March of the following year for previous years. Income in current and 2014 CPI-U-RS adjusted dollars (28))
A8: Year | B8: Male Median income in Current dollars | C8: Female Median income in Current dollars | D8: ratio of
D9: female to
D10: male median
D11: income
A12: 2014 | B12: 51456 | C12: 40797 | D12: =C12/B12 -> 0.7928521455
A13: 2013 | B13: 51418 | C13: 40699 | D13: =C13/B13 -> 0.7915321483
A14: 2012 | B14: 50683 | C14: 40019 | D14: 0.789594144
A15: 2011 | B15: 50316 | C15: 38685 | D15: 0.7688409254
A16: 2010 | B16: 50151 | C16: 38439 | D16: 0.7664652749
A17: 2009 | B17: 49164 | C17: 37234 | D17: 0.7573427711
A18: 2008 | B18: 47779 | C18: 36688 | D18: 0.7678687289
A19: 2007 | B19: 46224 | C19: 36167 | D19: 0.7824290412
A20: 2006 | B20: 44958 | C20: 34989 | D20: 0.7782597091
A21: 2005 | B21: 42188 | C21: 33256 | D21: 0.7882810278
A22: 2004 | B22: 41667 | C22: 32116 | D22: 0.7707778338
A23: 2003 | B23: 41503 | C23: 31653 | D23: 0.762667759
A24: 2002 | B24: 40507 | C24: 30970 | D24: 0.764559212
A25: 2001 | B25: 40136 | C25: 30420 | D25: 0.7579230616
A26: 2000 | B26: 38891 | C26: 29123 | D26: 0.7488364917 | F26: Sources: U.S. Census Bureau, Historical Income Tables: People,Table P-36. http://www.census.gov/hhes/www/income/data/historical/people/ (19.01.2016) and
A27: 1999 | B27: 37450 | C27: 27366 | D27: 0.7307343124 | F27: Goldin, Claudia, "Understanding the Gender Gap." New Perspectives 17.4 (1985): 9-13, p. 64
A28: 1998 | B28: 36252 | C28: 26855 | D28: 0.7407867152
A29: 1997 | B29: 35248 | C29: 26029 | D29: 0.7384532456
A30: 1996 | B30: 33538 | C30: 24935 | D30: 0.7434850021
A31: 1995 | B31: 32199 | C31: 23777 | D31: 0.738439082
A32: 1994 | B32: 31612 | C32: 23265 | D32: 0.7359547007
A33: 1993 | B33: 31077 | C33: 22469 | D33: 0.7230105866
A34: 1992 | B34: 30832 | C34: 22093 | D34: 0.7165607161
A35: 1991 | B35: 30331 | C35: 21245 | D35: 0.7004384953
A36: 1990 | B36: 28979 | C36: 20591 | D36: 0.7105490183
A37: 1989 | B37: 28419 | C37: 19638 | D37: 0.6910165734
A38: 1988 | B38: 27342 | C38: 18545 | D38: 0.6782605515
A39: 1987 | B39: 26681 | C39: 17564 | D39: 0.6582961658
A40: 1986 | B40: 25894 | C40: 16843 | D40: 0.6504595659
A41: 1985 | B41: 24999 | C41: 16252 | D41: 0.6501060042
A42: 1984 | B42: 24004 | C42: 15422 | D42: 0.642476254
A43: 1983 | B43: 22508 | C43: 14479 | D43: 0.6432823885
A44: 1982 | B44: 21655 | C44: 13663 | D44: 0.6309397368
A45: 1981 | B45: 20692 | C45: 12457 | D45: 0.6020201044
A46: 1980 | B46: 19173 | C46: 11591 | D46: 0.6045480624
A47: 1979 | B47: 17479 | C47: 10531 | D47: 0.6024944219
A48: 1978 | B48: 16062 | C48: 9641 | D48: 0.6002365832
A49: 1977 | B49: 15070 | C49: 8814 | D49: 0.5848706038
A50: 1976 | B50: 13859 | C50: 8312 | D50: 0.5997546721
A51: 1975 | B51: 12934 | C51: 7719 | D51: 0.5967991341
A52: 1974 | B52: 12162 | C52: 7174 | D52: 0.5898700872
A53: 1973 | B53: 11468 | C53: 6488 | D53: 0.5657481688
A54: 1972 | B54: 10538 | C54: 6053 | D54: 0.5743974189
A55: 1971 | B55: 9631 | C55: 5701 | D55: 0.5919426851
A56: 1970 | B56: 9184 | C56: 5440 | D56: 0.5923344948
A57: 1969 | B57: 8668 | C57: 5077 | D57: 0.5857175819
A58: 1968 | B58: 7814 | C58: 4568 | D58: 0.5845917584
A59: 1967 | B59: 7289 | C59: 4198 | D59: 0.5759363424
A60: 1966 | B60: 6955 | C60: 4026 | D60: 0.5788641265
A61: 1965 | B61: 6598 | C61: 3816 | D61: 0.5783570779
A62: 1964 | B62: 6284 | C62: 3710 | D62: 0.5903882877
A63: 1963 | B63: 6070 | C63: 3556 | D63: 0.5858319605
A64: 1962 | B64: 5826 | C64: 3457 | D64: 0.593374528
A65: 1961 | B65: 5663 | C65: 3341 | D65: 0.5899699806
A66: 1960 | B66: 5434 | C66: 3296 | D66: 0.6065513434
A67: 1959 | B67: 5241 | C67: 3206 | D67: 0.6117153215
A68: 1958 | B68: 4949 | C68: 3101 | D68: 0.6265912306
A69: 1957 | B69: 4722 | C69: 3007 | D69: 0.636806438
A70: 1956 | B70: 4467 | C70: 2829 | D70: 0.6333109469
A71: 1955 | B71: 4241 | C71: 2735 | D71: 0.6448950719
A72: 1930 | D72: 0.556
A73: 1890 | D73: 0.463
A74: Source: U.S. Census Bureau, Current Population Survey, Annual Social and Economic Supplements. For information on confidentiality protection, sampling error, nonsampling error, and definitions, see ftp://ftp2.census.gov/programs-surveys/cps/techdocs/cpsmar15.pdf

Sheet Figure 15
B2: U.S. personal saving rate, percent, annual.
A4: Frequency: Annual
A5: observation_date | B5: PSAVERT
A6: 1959-01-01 | B6: 10.3
A7: 1960-01-01 | B7: 10.1
A8: 1961-01-01 | B8: 11.3
A9: 1962-01-01 | B9: 11.1
A10: 1963-01-01 | B10: 10.6
A11: 1964-01-01 | B11: 11.5
A12: 1965-01-01 | B12: 11.3
A13: 1966-01-01 | B13: 11.1
A14: 1967-01-01 | B14: 12.2
A15: 1968-01-01 | B15: 11.2
A16: 1969-01-01 | B16: 10.7
A17: 1970-01-01 | B17: 12.6
A18: 1971-01-01 | B18: 13.3
A19: 1972-01-01 | B19: 12.1
A20: 1973-01-01 | B20: 13.1
A21: 1974-01-01 | B21: 12.9
A22: 1975-01-01 | B22: 13
A23: 1976-01-01 | B23: 11.1
A24: 1977-01-01 | B24: 10.2
A25: 1978-01-01 | B25: 10.2
A26: 1979-01-01 | B26: 9.8
A27: 1980-01-01 | B27: 10.6
A28: 1981-01-01 | B28: 11.2
A29: 1982-01-01 | B29: 11.5
A30: 1983-01-01 | B30: 9.5
A31: 1984-01-01 | B31: 10.7
A32: 1985-01-01 | B32: 8.6
A33: 1986-01-01 | B33: 8.2
A34: 1987-01-01 | B34: 7.3
A35: 1988-01-01 | B35: 7.8
A36: 1989-01-01 | B36: 7.8
A37: 1990-01-01 | B37: 7.8
A38: 1991-01-01 | B38: 8.2
A39: 1992-01-01 | B39: 8.9
A40: 1993-01-01 | B40: 7.3
A41: 1994-01-01 | B41: 6.3
A42: 1995-01-01 | B42: 6.4
A43: 1996-01-01 | B43: 5.9
A44: 1997-01-01 | B44: 5.7
A45: 1998-01-01 | B45: 6.2
A46: 1999-01-01 | B46: 4.4
A47: 2000-01-01 | B47: 4.2
A48: 2001-01-01 | B48: 4.3
A49: 2002-01-01 | B49: 5
A50: 2003-01-01 | B50: 4.8
A51: 2004-01-01 | B51: 4.6
A52: 2005-01-01 | B52: 2.6
A53: 2006-01-01 | B53: 3.3
A54: 2007-01-01 | B54: 3
A55: 2008-01-01 | B55: 4.9
A56: 2009-01-01 | B56: 6.1
A57: 2010-01-01 | B57: 5.6
A58: 2011-01-01 | B58: 6
A59: 2012-01-01 | B59: 7.6
A60: 2013-01-01 | B60: 4.8
A61: 2014-01-01 | B61: 4.8
A62: 2015-01-01 | B62: =NA() -> 
A64: Source: US. Bureau of Economic Analysis, Personal Saving Rate [PSAVERT], retrieved from FRED, Federal Reserve Bank of St. Louis https://research.stlouisfed.org/fred2/series/PSAVERT/, August 17, 2015.
A66: Federal Reserve Economic Data
A67: Link: https://research.stlouisfed.org/fred2
A68: Help: https://research.stlouisfed.org/fred2/help-faq
A69: Economic Research Division
A70: Federal Reserve Bank of St. Louis

Sheet Figure 22
B2: Historical Wage Gap in England
B5: In pence | C5: Men | D5: Women | E5: Women | G5: wage gap | H5: wage gap
B6: Years | C6: Casual | D6: Casual | E6: Annual | G6: casual | H6: annual
B7: (decades) | C7: Mean | D7: Mean | E7: Mean
A10: 1250
A11: 1260
A12: 1270 | B12: 1260-1270 | C12: 1.316667 | D12: 1.057143 | E12: 0.820024 | G12: =D12/C12 -> 0.8028932145 | H12: =E12/C12 -> 0.6228028803
A13: 1280 | B13: 1270-1280 | C13: 1.3 | D13: 1.0625 | E13: 0.910208 | G13: =D13/C13 -> 0.8173076923 | H13: =E13/C13 -> 0.70016
A14: 1290 | B14: 1280-1290 | C14: 1.335 | D14: 0.9833333 | E14: 0.8970673 | G14: 0.7365792509 | H14: 0.6719605243
A15: 1300 | B15: 1290-1300 | C15: 1.337 | D15: 0.9117647 | E15: 0.976174 | G15: 0.6819481675 | H15: 0.7301226627
A16: 1310 | B16: 1300-1310 | C16: 1.346 | D16: 1.082692 | E16: 1.011551 | G16: 0.8043774146 | H16: 0.7515237741
A17: 1320 | B17: 1310-1320 | C17: 1.457 | D17: 1.1875 | E17: 1.18991 | G17: 0.8150308854 | H17: 0.8166849691
A18: 1330 | B18: 1320-1330 | C18: 1.529 | D18: 0.9708696 | E18: 1.079238 | G18: 0.6349703074 | H18: 0.7058456508
A19: 1340 | B19: 1330-1340 | C19: 1.507 | D19: 1.30625 | E19: 0.9135666 | G19: 0.8667883212 | H19: 0.6062153948
A20: 1350 | B20: 1340-1350 | C20: 1.65 | D20: 1.197115 | E20: 0.9934736 | G20: 0.7255242424 | H20: 0.6021052121
A21: 1360 | B21: 1350-1360 | C21: 2.754 | D21: 1.735547 | E21: 1.207827 | G21: 0.630191358 | H21: 0.4385718954
A22: 1370 | B22: 1360-1370 | C22: 2.919 | D22: 2.166667 | E22: 1.228928 | G22: 0.7422634464 | H22: 0.4210099349
A23: 1380 | B23: 1370-1380 | C23: 3.195 | D23: 2.534091 | E23: 1.149202 | G23: 0.793142723 | H23: 0.3596876369
A24: 1390 | B24: 1380-1390 | C24: 3.141 | D24: 2.214286 | E24: 1.069476 | G24: 0.704962114 | H24: 0.3404890162
A25: 1400 | B25: 1390-1400 | C25: 3.09 | D25: 2.77375 | E25: 0.9675305 | G25: 0.8976537217 | H25: 0.3131166667
A26: 1410 | B26: 1400-1410 | C26: 3.465 | D26: 2.623885 | E26: 0.922276 | G26: 0.7572539683 | H26: 0.2661691198
A27: 1420 | B27: 1410-1420 | C27: 3.433 | D27: 2.556143 | E27: 0.8074256 | G27: 0.7445799592 | H27: 0.2351953394
A28: 1430 | B28: 1420-1430 | C28: 3.555 | D28: 2.5280715 | E28: 0.7606253 | G28: 0.7111312236 | H28: 0.2139592968
A29: 1440 | B29: 1430-1440 | C29: 3.683 | D29: 2.5 | E29: 0.7974359 | G29: 0.678794461 | H29: 0.2165180288
A30: 1450 | B30: 1440-1450 | C30: 3.649 | D30: 2.3281 | E30: 0.8205128 | G30: 0.6380104138 | H30: 0.2248596328
A31: 1460 | B31: 1450-1460 | C31: 3.778 | D31: 2.326667 | E31: 0.8119363 | G31: 0.6158462149 | H31: 0.2149116728
A32: 1470 | B32: 1460-1470 | C32: 3.542 | D32: 2.093583 | E32: 0.8395826 | G32: 0.5910736872 | H32: 0.2370363072
A33: 1480 | B33: 1470-1480 | C33: 3.531 | D33: 2.5 | E33: 1.223195 | G33: 0.7080147267 | H33: 0.3464160295
A34: 1490 | B34: 1480-1490 | C34: 3.491 | D34: 2.33075 | E34: 0.9512355 | G34: 0.6676453738 | H34: 0.27248224
A35: 1500 | B35: 1490-1500 | C35: 3.618 | D35: 2.477333 | E35: 1.113345 | G35: 0.6847244334 | H35: 0.3077238806
A36: 1510 | B36: 1500-1510 | C36: 3.407 | D36: 2.076923 | E36: 1.181834 | G36: 0.6096046375 | H36: 0.3468840622
A37: 1520 | B37: 1510-1520 | C37: 3.446 | D37: 1.9075 | E37: 1.021105 | G37: 0.5535403366 | H37: 0.2963160186
A38: 1530 | B38: 1520-1530 | C38: 3.395 | D38: 2.043333 | E38: 1.264979 | G38: 0.6018653903 | H38: 0.3726005891
A39: 1540 | B39: 1530-1540 | C39: 3.324 | D39: 1.954138 | E39: 1.386257 | G39: 0.587887485 | H39: 0.4170448255
A40: 1550 | B40: 1540-1550 | C40: 4.085 | D40: 2.084091 | E40: 1.297264 | G40: 0.5101813953 | H40: 0.3175676867
A41: 1560 | B41: 1550-1560 | C41: 5.117 | D41: 2 | E41: 2.325269 | G41: 0.390854016 | H41: 0.4544203635
A42: 1570 | B42: 1560-1570 | C42: 6.286 | D42: 2.853955 | E42: 2.548332 | G42: 0.4540176583 | H42: 0.4053980274
A43: 1580 | B43: 1570-1580 | C43: 6.539 | D43: 2.570588 | E43: 2.772609 | G43: 0.3931163787 | H43: 0.4240111638
A44: 1590 | B44: 1580-1590 | C44: 6.774 | D44: 2.22024 | E44: 2.963871 | G44: 0.3277590788 | H44: 0.4375363153
A45: 1600 | B45: 1590-1600 | C45: 7.166 | D45: 2.95 | E45: 3.916749 | G45: 0.4116662015 | H45: 0.5465739604
A46: 1610 | B46: 1600-1610 | C46: 7.589 | D46: 3.045 | E46: 4.659206 | G46: 0.4012386349 | H46: 0.6139420213
A47: 1620 | B47: 1610-1620 | C47: 7.927 | D47: 3.742522 | E47: 4.951203 | G47: 0.4721233758 | H47: 0.6245998486
A48: 1630 | B48: 1620-1630 | C48: 8.367 | D48: 3.680556 | E48: 5.253393 | G48: 0.4398895662 | H48: 0.6278705629
A49: 1640 | B49: 1630-1640 | C49: 9.033 | D49: 4.391489 | E49: 5.284809 | G49: 0.4861606332 | H49: 0.5850557954
A50: 1650 | B50: 1640-1650 | C50: 9.407 | D50: 4.923564 | E50: 5.890701 | G50: 0.523393643 | H50: 0.626203997
A51: 1660 | B51: 1650-1660 | C51: 10.103 | D51: 4.323077 | E51: 5.962675 | G51: 0.4279003266 | H51: 0.5901885579
A52: 1670 | B52: 1660-1670 | C52: 10.601 | D52: 4.734375 | E52: 6.514648 | G52: 0.4465970191 | H52: 0.6145314593
A53: 1680 | B53: 1670-1680 | C53: 9.813 | D53: 6 | E53: 6.613859 | G53: 0.6114338123 | H53: 0.6739895037
A54: 1690 | B54: 1680-1690 | C54: 9.854 | D54: 6.307692 | E54: 5.313004 | G54: 0.6401148772 | H54: 0.5391723158
A55: 1700 | B55: 1690-1700 | C55: 9.63 | D55: 5.792113 | E55: 6.575209 | G55: 0.6014655244 | H55: 0.6827839045
A56: 1710 | B56: 1700-1710 | C56: 9.779 | D56: 5.496893 | E56: 6.123279 | G56: 0.5621119746 | H56: 0.6261661724
A57: 1720 | B57: 1710-1720 | C57: 10.076 | D57: 6.526417 | E57: 7.327255 | G57: 0.6477190353 | H57: 0.7271987892
A58: 1730 | B58: 1720-1730 | C58: 9.901 | D58: 6.071429 | E58: 7.291126 | G58: 0.6132137158 | H58: 0.7364029896
A59: 1740 | B59: 1730-1740 | C59: 10.718 | D59: 5.587833 | E59: 8.476572 | G59: 0.5213503452 | H59: 0.7908725508
A60: 1750 | B60: 1740-1750 | C60: 10.633 | D60: 7.088889 | E60: 8.194368 | G60: 0.6666875764 | H60: 0.7706543779
A61: 1760 | B61: 1750-1760 | C61: 10.973 | D61: 6.31 | E61: 8.044304 | G61: 0.5750478447 | H61: 0.7330997904
A62: 1770 | B62: 1760-1770 | C62: 11.549 | D62: 6.5375 | E62: 8.507633 | G62: 0.5660663261 | H62: 0.7366553814
A63: 1780 | B63: 1770-1780 | C63: 12.411 | D63: 6.193975 | E63: 9.17859 | G63: 0.4990713883 | H63: 0.7395528161
A64: 1790 | B64: 1780-1790 | C64: 13.33 | D64: 6.369491 | E64: 9.3743 | G64: 0.4778312828 | H64: 0.7032483121
A65: 1800 | B65: 1790-1800 | C65: 15.646 | D65: 7.533333 | E65: 10.61941 | G65: 0.4814861946 | H65: 0.6787300268
A66: 1810 | B66: 1800-1810 | C66: 19.804 | D66: 8.111321 | E66: 13.40374 | G66: 0.4095799333 | H66: 0.6768198344
A67: 1820 | B67: 1810-1820 | C67: 23.194 | D67: 9.705714 | E67: 15.42941 | G67: 0.4184579633 | H67: 0.6652328188
A68: 1830 | B68: 1820-1830 | C68: 20.036 | D68: 7.96 | E68: 15.14945 | G68: 0.3972848872 | H68: 0.7561114993
A69: 1840 | B69: 1830-1840 | C69: 20.197 | D69: 8.4 | E69: 13.75207 | G69: 0.415903352 | H69: 0.6808966678
A70: 1850 | B70: 1840-1850 | C70: 20.818 | D70: 6.664 | E70: 17.86822 | G70: 0.3201075992 | H70: 0.8583062734
B72: Mean/sum | C72: =AVERAGE(C12:C70) -> 7.195757068 | D72: =AVERAGE(D12:D70) -> 3.722135459 | E72: =AVERAGE(E12:E70) -> 4.405058458
A75: Source: Humphries, Jane, and Jacob Weisdorf. 2015. “The Wages of Women in England, 1260-1850.” Journal of Economic History 75 (2): 405–447. Appendix A1

Sheet !!!
B2: Work Hours, by Gender and Marital Status
B4: Married female | C4: Married male | D4: Single female | E4: single male
A6: 1950 | B6: 8.0024 | C6: 41.6833 | D6: 28.801 | E6: 31.4252
A7: 1960 | B7: 10.8532 | C7: 40.1376 | D7: 28.0608 | E7: 29.1782
A8: 1970 | B8: 13.7832 | C8: 39.5603 | D8: 27.0204 | E8: 28.0432
A9: 1980 | B9: 18.0191 | C9: 38.6713 | D9: 28.256 | E9: 29.9582
A10: 1990 | B10: 23.3182 | C10: 39.5396 | D10: 29.5931 | E10: 31.1863
A11: 2000 | B11: 24.7334 | C11: 38.7731 | D11: 29.2903 | E11: 30.9101
A12: 2005 | B12: 24.7388 | C12: 38.6083 | D12: 29.1703 | E12: 32.2942 | G12: Source: Jones, Larry E., Rodolfo E. Manuelli, and Ellen R. McGrattan. Why are married women working so much?. No. 317. Federal Reserve Bank of Minneapolis, 2003, p.76.
